[Event "Titled Tuesday Blitz July 05 Late 2022"]
[White "Kosteniuk, Alexandra"]
[Black "He, Anthony"]
[WhiteFideId "4128125"]
[BlackFideId "2088215"]
[WhiteElo "2469"]
[BlackElo "2409"]
[Result "0-1"]
[Round "03"]
[TimeControl "180+1"]
[Date "2022.07.05"]
[WhiteClock "0:00:17"]
[BlackClock "0:00:40"]

1. e4 {[%clk 0:03:00]}  d5 {[%clk 0:02:57]} 2. exd5 {[%clk 0:03:00]}  Qxd5 {[%clk 0:02:58]} 3. Nc3 {[%clk 0:03:01]}  Qd8 {[%clk 0:02:57]} 4. d4 {[%clk 0:03:01]}  Nf6 {[%clk 0:02:58]} 5. Nf3 {[%clk 0:03:01]}  c6 {[%clk 0:02:58]} 6. Bc4 {[%clk 0:03:01]}  Bf5 {[%clk 0:02:59]} 7. Ne5 {[%clk 0:02:56]}  e6 {[%clk 0:02:58]} 8. g4 {[%clk 0:02:56]}  Bg6 {[%clk 0:02:57]} 9. h4 {[%clk 0:02:56]}  Nbd7 {[%clk 0:02:57]} 10. Qe2 {[%clk 0:02:51]}  Bb4 {[%clk 0:02:55]} 11. Rh3 {[%clk 0:02:47]}  Qb6 {[%clk 0:02:16]} 12. h5 {[%clk 0:02:39]}  Be4 {[%clk 0:02:08]} 13. g5 {[%clk 0:02:28]}  Qxd4 {[%clk 0:02:03]} 14. Nxd7 {[%clk 0:02:20]}  Nxd7 {[%clk 0:02:01]} 15. Bd2 {[%clk 0:02:21]}  Bxc2 {[%clk 0:01:58]} 16. a3 {[%clk 0:02:14]}  Bf5 {[%clk 0:01:44]} 17. Re3 {[%clk 0:01:33]}  Bc5 {[%clk 0:01:24]} 18. O-O-O {[%clk 0:01:28]}  O-O-O {[%clk 0:01:24]} 19. Ne4 {[%clk 0:01:16]}  Ne5 {[%clk 0:01:15]} 20. Nxc5 {[%clk 0:00:29]}  Nxc4 {[%clk 0:01:15]} 21. Rc3 {[%clk 0:00:25]}  Nxd2 {[%clk 0:01:00]} 22. Rxd2 {[%clk 0:00:25]}  Qh4 {[%clk 0:00:45]} 23. Rg3 {[%clk 0:00:20]}  Rxd2 {[%clk 0:00:41]} 24. Qxd2 {[%clk 0:00:20]}  Rd8 {[%clk 0:00:41]} 25. Qc3 {[%clk 0:00:17]}  Qh1+ {[%clk 0:00:40]} 0-1


[Site "https://www.chess.com"]

[Event "Titled Tuesday Blitz July 05 Late 2022"]
[White "Lashkin, Jegor"]
[Black "Leiva, Gianmarco"]
[WhiteFideId "13907808"]
[BlackFideId "3804399"]
[WhiteElo "2368"]
[BlackElo "2323"]
[Result "1-0"]
[Round "03"]
[TimeControl "180+1"]
[Date "2022.07.05"]
[WhiteClock "0:00:07"]
[BlackClock "0:00:16"]

1. d4 {[%clk 0:03:00]}  Nf6 {[%clk 0:02:57]} 2. c4 {[%clk 0:03:01]}  e6 {[%clk 0:02:58]} 3. Nf3 {[%clk 0:03:01]}  d5 {[%clk 0:02:57]} 4. Nc3 {[%clk 0:03:01]}  a6 {[%clk 0:02:58]} 5. c5 {[%clk 0:03:00]}  b6 {[%clk 0:02:57]} 6. cxb6 {[%clk 0:03:01]}  c5 {[%clk 0:02:58]} 7. Bf4 {[%clk 0:02:54]}  Bd6 {[%clk 0:02:35]} 8. Bxd6 {[%clk 0:02:46]}  Qxd6 {[%clk 0:02:35]} 9. dxc5 {[%clk 0:02:42]}  Qxc5 {[%clk 0:02:33]} 10. Qd4 {[%clk 0:02:02]}  Qd6 {[%clk 0:01:42]} 11. e3 {[%clk 0:01:56]}  O-O {[%clk 0:01:37]} 12. Be2 {[%clk 0:01:29]}  Nc6 {[%clk 0:01:25]} 13. Qd2 {[%clk 0:01:12]}  Rb8 {[%clk 0:01:21]} 14. O-O {[%clk 0:01:07]}  Qb4 {[%clk 0:01:05]} 15. Rac1 {[%clk 0:00:55]}  Bd7 {[%clk 0:00:54]} 16. b3 {[%clk 0:00:42]}  Qxb6 {[%clk 0:00:26]} 17. Na4 {[%clk 0:00:42]}  Qa7 {[%clk 0:00:24]} 18. Nc5 {[%clk 0:00:38]}  Rb6 {[%clk 0:00:20]} 19. Rfd1 {[%clk 0:00:27]}  Rd8 {[%clk 0:00:15]} 20. Nxd7 {[%clk 0:00:20]}  Qxd7 {[%clk 0:00:10]} 21. Nd4 {[%clk 0:00:18]}  Ne5 {[%clk 0:00:06]} 22. Qa5 {[%clk 0:00:17]}  Rdb8 {[%clk 0:00:06]} 23. Rc2 {[%clk 0:00:09]}  Ne4 {[%clk 0:00:03]} 24. Rdc1 {[%clk 0:00:09]}  h6 {[%clk 0:00:03]} 25. Rc7 {[%clk 0:00:09]}  Qd6 {[%clk 0:00:03]} 26. h3 {[%clk 0:00:06]}  h5 {[%clk 0:00:02]} 27. Qe1 {[%clk 0:00:05]}  h4 {[%clk 0:00:02]} 28. Bf3 {[%clk 0:00:02]}  Ng5 {[%clk 0:00:01]} 29. Be2 {[%clk 0:00:02]}  Ne4 {[%clk 0:00:02]} 30. R1c2 {[%clk 0:00:03]}  a5 {[%clk 0:00:02]} 31. Qxa5 {[%clk 0:00:03]}  Nf6 {[%clk 0:00:02]} 32. Qe1 {[%clk 0:00:03]}  Ne4 {[%clk 0:00:02]} 33. Qc1 {[%clk 0:00:03]}  Kh7 {[%clk 0:00:01]} 34. Rc8 {[%clk 0:00:03]}  Ng6 {[%clk 0:00:01]} 35. Rxb8 {[%clk 0:00:03]}  Rxb8 {[%clk 0:00:02]} 36. Bd3 {[%clk 0:00:03]}  Ra8 {[%clk 0:00:02]} 37. Bxe4 {[%clk 0:00:03]}  dxe4 {[%clk 0:00:03]} 38. Rc6 {[%clk 0:00:03]}  Qd5 {[%clk 0:00:03]} 39. a4 {[%clk 0:00:03]}  Ne5 {[%clk 0:00:04]} 40. Rc5 {[%clk 0:00:03]}  Qd7 {[%clk 0:00:04]} 41. Rxe5 {[%clk 0:00:03]}  Rc8 {[%clk 0:00:03]} 42. Qd1 {[%clk 0:00:03]}  Rd8 {[%clk 0:00:03]} 43. Rxe4 {[%clk 0:00:03]}  f6 {[%clk 0:00:03]} 44. Rxh4+ {[%clk 0:00:03]}  Kg8 {[%clk 0:00:04]} 45. Qh5 {[%clk 0:00:04]}  e5 {[%clk 0:00:04]} 46. Qh8+ {[%clk 0:00:03]}  Kf7 {[%clk 0:00:05]} 47. Qh5+ {[%clk 0:00:04]}  Kg8 {[%clk 0:00:06]} 48. Nf5 {[%clk 0:00:04]}  Qd1+ {[%clk 0:00:06]} 49. Kh2 {[%clk 0:00:05]}  Qxh5 {[%clk 0:00:07]} 50. Rxh5 {[%clk 0:00:05]}  Rb8 {[%clk 0:00:07]} 51. Rh4 {[%clk 0:00:05]}  Rxb3 {[%clk 0:00:08]} 52. Rg4 {[%clk 0:00:06]}  Kf7 {[%clk 0:00:09]} 53. Nxg7 {[%clk 0:00:06]}  f5 {[%clk 0:00:09]} 54. Nxf5 {[%clk 0:00:06]}  Kf6 {[%clk 0:00:10]} 55. Ng3 {[%clk 0:00:07]}  e4 {[%clk 0:00:11]} 56. Nxe4+ {[%clk 0:00:07]}  Kf5 {[%clk 0:00:11]} 57. Ng3+ {[%clk 0:00:08]}  Kf6 {[%clk 0:00:12]} 58. Rf4+ {[%clk 0:00:09]}  Kg5 {[%clk 0:00:12]} 59. Ne4+ {[%clk 0:00:10]}  Kh5 {[%clk 0:00:12]} 60. Nf6+ {[%clk 0:00:09]}  Kg6 {[%clk 0:00:13]} 61. Ng4 {[%clk 0:00:10]}  Kh5 {[%clk 0:00:13]} 62. Rd4 {[%clk 0:00:10]}  Ra3 {[%clk 0:00:13]} 63. Rd5+ {[%clk 0:00:10]}  Kg6 {[%clk 0:00:13]} 64. a5 {[%clk 0:00:10]}  Ra1 {[%clk 0:00:14]} 65. Rb5 {[%clk 0:00:11]}  Kf7 {[%clk 0:00:14]} 66. Ne5+ {[%clk 0:00:10]}  Kf6 {[%clk 0:00:14]} 67. Nd3 {[%clk 0:00:11]}  Kg6 {[%clk 0:00:15]} 68. Nc5 {[%clk 0:00:11]}  Kh5 {[%clk 0:00:15]} 69. Nd7+ {[%clk 0:00:11]}  Kh6 {[%clk 0:00:16]} 70. Nb8 {[%clk 0:00:10]}  Kg6 {[%clk 0:00:16]} 71. a6 {[%clk 0:00:10]}  Kh6 {[%clk 0:00:16]} 72. Rb7 {[%clk 0:00:11]}  Kh5 {[%clk 0:00:17]} 73. a7 {[%clk 0:00:11]}  Kh4 {[%clk 0:00:17]} 74. Nd7 {[%clk 0:00:08]}  Kg5 {[%clk 0:00:16]} 75. Nb6 {[%clk 0:00:08]}  Kh4 {[%clk 0:00:16]} 76. a8=Q {[%clk 0:00:07]} 1-0


[Site "https://www.chess.com"]

[Event "Titled Tuesday Blitz July 05 Late 2022"]
[White "Leve, Nitai"]
[Black "Shimanov, Aleksandr"]
[WhiteFideId "2006898"]
[BlackFideId "4198603"]
[WhiteElo "2144"]
[BlackElo "2605"]
[Result "0-1"]
[Round "03"]
[TimeControl "180+1"]
[Date "2022.07.05"]
[WhiteClock "0:00:02"]
[BlackClock "0:01:37"]

1. e4 {[%clk 0:03:00]}  e6 {[%clk 0:02:57]} 2. d4 {[%clk 0:02:56]}  d5 {[%clk 0:02:58]} 3. e5 {[%clk 0:02:56]}  c5 {[%clk 0:02:58]} 4. c3 {[%clk 0:02:56]}  Qa5 {[%clk 0:02:58]} 5. dxc5 {[%clk 0:02:49]}  Qc7 {[%clk 0:02:58]} 6. Nf3 {[%clk 0:02:48]}  Bxc5 {[%clk 0:02:57]} 7. Bd3 {[%clk 0:02:48]}  Nc6 {[%clk 0:02:57]} 8. Qe2 {[%clk 0:02:46]}  Nge7 {[%clk 0:02:58]} 9. O-O {[%clk 0:02:44]}  Ng6 {[%clk 0:02:56]} 10. Re1 {[%clk 0:02:44]}  O-O {[%clk 0:02:55]} 11. b4 {[%clk 0:02:38]}  Bb6 {[%clk 0:02:52]} 12. b5 {[%clk 0:02:37]}  Na5 {[%clk 0:02:50]} 13. h4 {[%clk 0:02:32]}  f6 {[%clk 0:02:49]} 14. Qc2 {[%clk 0:01:49]}  Nxe5 {[%clk 0:02:43]} 15. Bxh7+ {[%clk 0:01:27]}  Kh8 {[%clk 0:02:42]} 16. Be3 {[%clk 0:01:01]}  Nxf3+ {[%clk 0:02:32]} 17. gxf3 {[%clk 0:01:02]}  Bxe3 {[%clk 0:02:32]} 18. Rxe3 {[%clk 0:00:58]}  Nc4 {[%clk 0:02:32]} 19. Qg6 {[%clk 0:00:30]}  Qf4 {[%clk 0:02:29]} 20. Re1 {[%clk 0:00:18]}  Ne5 {[%clk 0:01:56]} 21. Qh5 {[%clk 0:00:08]}  Nxf3+ {[%clk 0:01:47]} 22. Kf1 {[%clk 0:00:08]}  Nxe1 {[%clk 0:01:44]} 23. Bg6+ {[%clk 0:00:05]}  Qh6 {[%clk 0:01:44]} 24. Kxe1 {[%clk 0:00:06]}  Qxh5 {[%clk 0:01:43]} 25. Bxh5 {[%clk 0:00:07]}  e5 {[%clk 0:01:43]} 26. Nd2 {[%clk 0:00:08]}  Be6 {[%clk 0:01:43]} 27. Ke2 {[%clk 0:00:08]}  Rac8 {[%clk 0:01:44]} 28. Kd3 {[%clk 0:00:07]}  Rfd8 {[%clk 0:01:43]} 29. Rg1 {[%clk 0:00:06]}  d4 {[%clk 0:01:43]} 30. c4 {[%clk 0:00:06]}  Bf5+ {[%clk 0:01:43]} 31. Ke2 {[%clk 0:00:05]}  e4 {[%clk 0:01:41]} 32. Bg4 {[%clk 0:00:05]}  Bxg4+ {[%clk 0:01:41]} 33. Rxg4 {[%clk 0:00:06]}  f5 {[%clk 0:01:41]} 34. Rg5 {[%clk 0:00:06]}  Rc5 {[%clk 0:01:38]} 35. Nxe4 {[%clk 0:00:05]}  Re5 {[%clk 0:01:38]} 36. Kd3 {[%clk 0:00:02]}  fxe4+ {[%clk 0:01:37]} 0-1


[Site "https://www.chess.com"]

[Event "Titled Tuesday Blitz July 05 Late 2022"]
[White "Livaic, Leon"]
[Black "Boder, Jan"]
[WhiteFideId "14531534"]
[BlackFideId "16243226"]
[WhiteElo "2540"]
[BlackElo "2064"]
[Result "1-0"]
[Round "03"]
[TimeControl "180+1"]
[Date "2022.07.05"]
[WhiteClock "0:00:41"]
[BlackClock "0:00:05"]

1. e4 {[%clk 0:03:00]}  e5 {[%clk 0:02:56]} 2. f4 {[%clk 0:03:00]}  exf4 {[%clk 0:02:47]} 3. Nf3 {[%clk 0:03:00]}  g5 {[%clk 0:02:47]} 4. Nc3 {[%clk 0:03:00]}  Bg7 {[%clk 0:02:39]} 5. d4 {[%clk 0:02:55]}  d6 {[%clk 0:02:33]} 6. g3 {[%clk 0:02:52]}  g4 {[%clk 0:02:25]} 7. Nh4 {[%clk 0:02:49]}  f3 {[%clk 0:02:25]} 8. Be3 {[%clk 0:02:47]}  Ne7 {[%clk 0:02:22]} 9. Qd2 {[%clk 0:02:44]}  Nbc6 {[%clk 0:02:19]} 10. h3 {[%clk 0:02:39]}  h5 {[%clk 0:02:15]} 11. O-O-O {[%clk 0:02:38]}  Bd7 {[%clk 0:02:12]} 12. Bc4 {[%clk 0:02:34]}  a6 {[%clk 0:02:08]} 13. Bg5 {[%clk 0:02:26]}  b5 {[%clk 0:01:58]} 14. Bb3 {[%clk 0:02:21]}  f6 {[%clk 0:01:53]} 15. Bf4 {[%clk 0:02:10]}  Na5 {[%clk 0:01:51]} 16. Qe3 {[%clk 0:01:20]}  Nxb3+ {[%clk 0:01:40]} 17. axb3 {[%clk 0:01:20]}  b4 {[%clk 0:00:46]} 18. Nd5 {[%clk 0:01:20]}  Kf7 {[%clk 0:00:31]} 19. Qd3 {[%clk 0:01:18]}  c6 {[%clk 0:00:26]} 20. Ne3 {[%clk 0:01:17]}  Be6 {[%clk 0:00:19]} 21. hxg4 {[%clk 0:00:57]}  hxg4 {[%clk 0:00:18]} 22. Nhf5 {[%clk 0:00:58]}  Bxf5 {[%clk 0:00:15]} 23. exf5 {[%clk 0:00:57]}  Qa5 {[%clk 0:00:15]} 24. Kb1 {[%clk 0:00:51]}  d5 {[%clk 0:00:15]} 25. Nxg4 {[%clk 0:00:51]}  Qb5 {[%clk 0:00:12]} 26. Qxf3 {[%clk 0:00:51]}  a5 {[%clk 0:00:12]} 27. Bd6 {[%clk 0:00:44]}  Nc8 {[%clk 0:00:07]} 28. Bc5 {[%clk 0:00:42]}  a4 {[%clk 0:00:07]} 29. Rxh8 {[%clk 0:00:42]}  Bxh8 {[%clk 0:00:07]} 30. Nh6+ {[%clk 0:00:42]}  Ke8 {[%clk 0:00:05]} 31. Qh5+ {[%clk 0:00:41]}  Kd7 {[%clk 0:00:05]} 32. Qf7+ {[%clk 0:00:41]}  Kd8 {[%clk 0:00:05]} 33. Re1 {[%clk 0:00:41]} 1-0


[Site "https://www.chess.com"]

[Event "Titled Tuesday Blitz July 05 Late 2022"]
[White "Manukyan, Sargis A."]
[Black "Salem, A.R. Saleh"]
[WhiteFideId "13303970"]
[BlackFideId "9301348"]
[WhiteElo "2187"]
[BlackElo "2679"]
[Result "0-1"]
[Round "03"]
[TimeControl "180+1"]
[Date "2022.07.05"]
[WhiteClock "0:00:10"]
[BlackClock "0:01:29"]

1. Nf3 {[%clk 0:03:00]}  c5 {[%clk 0:02:58]} 2. c4 {[%clk 0:03:00]}  Nf6 {[%clk 0:02:58]} 3. Nc3 {[%clk 0:03:00]}  d5 {[%clk 0:02:59]} 4. cxd5 {[%clk 0:03:00]}  Nxd5 {[%clk 0:02:59]} 5. g3 {[%clk 0:03:00]}  Nc6 {[%clk 0:02:59]} 6. Bg2 {[%clk 0:03:01]}  g6 {[%clk 0:02:59]} 7. O-O {[%clk 0:03:01]}  Bg7 {[%clk 0:02:59]} 8. Ng5 {[%clk 0:02:58]}  e6 {[%clk 0:02:58]} 9. d3 {[%clk 0:02:57]}  O-O {[%clk 0:02:58]} 10. Nge4 {[%clk 0:02:53]}  b6 {[%clk 0:02:58]} 11. Bg5 {[%clk 0:02:50]}  f6 {[%clk 0:02:57]} 12. Bd2 {[%clk 0:02:49]}  h6 {[%clk 0:02:53]} 13. a3 {[%clk 0:02:35]}  Nde7 {[%clk 0:02:52]} 14. f4 {[%clk 0:02:14]}  f5 {[%clk 0:02:50]} 15. Nf2 {[%clk 0:02:14]}  Qd7 {[%clk 0:02:48]} 16. b4 {[%clk 0:02:11]}  Rb8 {[%clk 0:02:37]} 17. bxc5 {[%clk 0:02:07]}  bxc5 {[%clk 0:02:38]} 18. Rc1 {[%clk 0:02:05]}  c4 {[%clk 0:02:27]} 19. dxc4 {[%clk 0:01:59]}  Rd8 {[%clk 0:02:27]} 20. Be3 {[%clk 0:01:47]}  Nd4 {[%clk 0:02:26]} 21. Nb5 {[%clk 0:01:35]}  Nec6 {[%clk 0:02:15]} 22. Nd3 {[%clk 0:01:14]}  Qe7 {[%clk 0:02:09]} 23. Nxd4 {[%clk 0:00:59]}  Nxd4 {[%clk 0:02:10]} 24. c5 {[%clk 0:00:59]}  Ba6 {[%clk 0:02:08]} 25. c6 {[%clk 0:00:39]}  Nxe2+ {[%clk 0:02:05]} 26. Qxe2 {[%clk 0:00:40]}  Bxd3 {[%clk 0:02:06]} 27. Qf2 {[%clk 0:00:41]}  Bxf1 {[%clk 0:02:06]} 28. c7 {[%clk 0:00:41]}  Bxg2 {[%clk 0:02:03]} 29. cxd8=Q+ {[%clk 0:00:40]}  Qxd8 {[%clk 0:02:01]} 30. Qxg2 {[%clk 0:00:40]}  Rb2 {[%clk 0:02:01]} 31. Qc6 {[%clk 0:00:38]}  Kh7 {[%clk 0:01:30]} 32. Qxe6 {[%clk 0:00:37]}  Re2 {[%clk 0:01:30]} 33. Kf1 {[%clk 0:00:23]}  Qd3 {[%clk 0:01:29]} 34. Qc4 {[%clk 0:00:10]}  Rxe3+ {[%clk 0:01:29]} 35. Qxd3 {[%clk 0:00:10]}  Rxd3 {[%clk 0:01:29]} 36. Rc7 {[%clk 0:00:10]}  Rxa3 {[%clk 0:01:29]} 0-1


[Site "https://www.chess.com"]

[Event "Titled Tuesday Blitz July 05 Late 2022"]
[White "Mickiewicz, Piotr"]
[Black "Nguyen, Quoc Hy"]
[WhiteFideId "1114891"]
[BlackFideId "12410853"]
[WhiteElo "2209"]
[BlackElo "1938"]
[Result "0-1"]
[Round "03"]
[TimeControl "180+1"]
[Date "2022.07.06"]
[WhiteClock "0:00:07"]
[BlackClock "0:00:18"]

1. e4 {[%clk 0:03:00]}  c5 {[%clk 0:02:59]} 2. Nf3 {[%clk 0:03:00]}  Nc6 {[%clk 0:02:59]} 3. d4 {[%clk 0:03:01]}  cxd4 {[%clk 0:03:00]} 4. Nxd4 {[%clk 0:03:01]}  Nf6 {[%clk 0:03:00]} 5. Nc3 {[%clk 0:03:01]}  e5 {[%clk 0:03:01]} 6. Nde2 {[%clk 0:03:00]}  d6 {[%clk 0:02:42]} 7. h3 {[%clk 0:02:50]}  Be7 {[%clk 0:02:42]} 8. Be3 {[%clk 0:02:46]}  O-O {[%clk 0:02:40]} 9. g4 {[%clk 0:02:46]}  a6 {[%clk 0:02:34]} 10. Ng3 {[%clk 0:02:37]}  Be6 {[%clk 0:02:29]} 11. g5 {[%clk 0:02:36]}  Nd7 {[%clk 0:02:29]} 12. h4 {[%clk 0:02:35]}  b5 {[%clk 0:02:29]} 13. Nd5 {[%clk 0:02:33]}  Rc8 {[%clk 0:02:23]} 14. c3 {[%clk 0:02:32]}  Nc5 {[%clk 0:02:20]} 15. Bg2 {[%clk 0:02:27]}  Na4 {[%clk 0:02:18]} 16. Qe2 {[%clk 0:02:12]}  Na5 {[%clk 0:02:09]} 17. Nf5 {[%clk 0:02:09]}  Bxd5 {[%clk 0:01:54]} 18. exd5 {[%clk 0:02:08]}  Re8 {[%clk 0:01:30]} 19. Be4 {[%clk 0:01:45]}  Nc4 {[%clk 0:01:26]} 20. Bc1 {[%clk 0:01:44]}  Nc5 {[%clk 0:01:15]} 21. Bc2 {[%clk 0:01:39]}  e4 {[%clk 0:01:16]} 22. Kf1 {[%clk 0:01:33]}  Bf8 {[%clk 0:01:14]} 23. Rg1 {[%clk 0:01:24]}  Qd7 {[%clk 0:01:12]} 24. Qg4 {[%clk 0:01:12]}  Ne5 {[%clk 0:01:10]} 25. Qh3 {[%clk 0:01:02]}  Nf3 {[%clk 0:01:04]} 26. Rg3 {[%clk 0:00:57]}  Re5 {[%clk 0:01:02]} 27. Rxf3 {[%clk 0:00:52]}  exf3 {[%clk 0:01:01]} 28. b4 {[%clk 0:00:53]}  Ne4 {[%clk 0:00:49]} 29. Bxe4 {[%clk 0:00:52]}  Rxe4 {[%clk 0:00:44]} 30. Nh6+ {[%clk 0:00:51]}  gxh6 {[%clk 0:00:41]} 31. Qxd7 {[%clk 0:00:51]}  Rxh4 {[%clk 0:00:36]} 32. Kg1 {[%clk 0:00:32]}  Rcc4 {[%clk 0:00:36]} 33. gxh6 {[%clk 0:00:07]}  Rcg4+ {[%clk 0:00:34]} 34. Qxg4+ {[%clk 0:00:08]}  Rxg4+ {[%clk 0:00:35]} 35. Kf1 {[%clk 0:00:08]}  Rh4 {[%clk 0:00:35]} 36. Kg1 {[%clk 0:00:08]}  Bxh6 {[%clk 0:00:34]} 37. Bxh6 {[%clk 0:00:09]}  Rxh6 {[%clk 0:00:34]} 38. a4 {[%clk 0:00:10]}  Rh5 {[%clk 0:00:34]} 39. axb5 {[%clk 0:00:09]}  axb5 {[%clk 0:00:34]} 40. Rd1 {[%clk 0:00:07]}  Rg5+ {[%clk 0:00:34]} 41. Kf1 {[%clk 0:00:06]}  h5 {[%clk 0:00:33]} 42. Rd4 {[%clk 0:00:05]}  Kf8 {[%clk 0:00:29]} 43. Rf4 {[%clk 0:00:04]}  Rxd5 {[%clk 0:00:28]} 44. Rxf3 {[%clk 0:00:04]}  Ke7 {[%clk 0:00:27]} 45. Rf4 {[%clk 0:00:04]}  Rd1+ {[%clk 0:00:26]} 46. Ke2 {[%clk 0:00:04]}  Rc1 {[%clk 0:00:26]} 47. Kd2 {[%clk 0:00:04]}  Rb1 {[%clk 0:00:26]} 48. Kc2 {[%clk 0:00:04]}  Rf1 {[%clk 0:00:26]} 49. c4 {[%clk 0:00:04]}  bxc4 {[%clk 0:00:26]} 50. b5 {[%clk 0:00:04]}  d5 {[%clk 0:00:18]} 51. Rf5 {[%clk 0:00:04]}  Ke6 {[%clk 0:00:18]} 52. b6 {[%clk 0:00:04]}  Rg1 {[%clk 0:00:17]} 53. b7 {[%clk 0:00:04]}  Rg8 {[%clk 0:00:17]} 54. Rxh5 {[%clk 0:00:05]}  Rb8 {[%clk 0:00:17]} 55. Rh6+ {[%clk 0:00:05]}  f6 {[%clk 0:00:18]} 56. Kc3 {[%clk 0:00:04]}  Rxb7 {[%clk 0:00:18]} 57. Kd4 {[%clk 0:00:05]}  Rb3 {[%clk 0:00:17]} 58. Rh8 {[%clk 0:00:06]}  Rd3+ {[%clk 0:00:18]} 59. Kc5 {[%clk 0:00:07]}  c3 {[%clk 0:00:18]} 60. Re8+ {[%clk 0:00:06]}  Kf5 {[%clk 0:00:18]} 61. Re1 {[%clk 0:00:07]}  c2 {[%clk 0:00:17]} 62. Rc1 {[%clk 0:00:06]}  Rd2 {[%clk 0:00:18]} 63. Kb4 {[%clk 0:00:07]}  d4 {[%clk 0:00:18]} 64. Kb3 {[%clk 0:00:07]}  d3 {[%clk 0:00:18]} 0-1


[Site "https://www.chess.com"]

[Event "Titled Tuesday Blitz July 05 Late 2022"]
[White "Reprintsev, Alexander"]
[Black "Idani, Pouya"]
[WhiteFideId "14100541"]
[BlackFideId "12510130"]
[WhiteElo "2108"]
[BlackElo "2610"]
[Result "1-0"]
[Round "03"]
[TimeControl "180+1"]
[Date "2022.07.06"]
[WhiteClock "0:01:02"]
[BlackClock "0:00:05"]

1. e4 {[%clk 0:02:56]}  c5 {[%clk 0:02:56]} 2. b3 {[%clk 0:02:55]}  e6 {[%clk 0:02:52]} 3. Bb2 {[%clk 0:02:52]}  a6 {[%clk 0:02:43]} 4. Nf3 {[%clk 0:02:49]}  Nc6 {[%clk 0:02:41]} 5. c4 {[%clk 0:02:46]}  Nf6 {[%clk 0:02:33]} 6. e5 {[%clk 0:02:46]}  Ng4 {[%clk 0:02:33]} 7. h3 {[%clk 0:02:45]}  Nh6 {[%clk 0:02:33]} 8. d4 {[%clk 0:02:45]}  cxd4 {[%clk 0:02:23]} 9. Bd3 {[%clk 0:02:44]}  Bc5 {[%clk 0:02:07]} 10. Nbd2 {[%clk 0:02:43]}  d5 {[%clk 0:01:51]} 11. a3 {[%clk 0:02:36]}  a5 {[%clk 0:01:45]} 12. Rc1 {[%clk 0:02:33]}  Ba7 {[%clk 0:01:40]} 13. c5 {[%clk 0:02:29]}  O-O {[%clk 0:01:31]} 14. O-O {[%clk 0:02:29]}  f6 {[%clk 0:01:07]} 15. Re1 {[%clk 0:02:28]}  fxe5 {[%clk 0:01:03]} 16. Nxe5 {[%clk 0:02:28]}  Nxe5 {[%clk 0:01:00]} 17. Rxe5 {[%clk 0:02:28]}  Bb8 {[%clk 0:00:59]} 18. Bxd4 {[%clk 0:02:25]}  Bxe5 {[%clk 0:00:50]} 19. Bxe5 {[%clk 0:02:25]}  Nf7 {[%clk 0:00:32]} 20. Qh5 {[%clk 0:02:15]}  h6 {[%clk 0:00:32]} 21. Bxg7 {[%clk 0:01:58]}  Qg5 {[%clk 0:00:32]} 22. Qxg5 {[%clk 0:01:57]}  hxg5 {[%clk 0:00:28]} 23. Bxf8 {[%clk 0:01:57]}  Kxf8 {[%clk 0:00:29]} 24. Nf3 {[%clk 0:01:52]}  Ke7 {[%clk 0:00:28]} 25. Bg6 {[%clk 0:01:42]}  Nd8 {[%clk 0:00:19]} 26. Bh5 {[%clk 0:01:36]}  Nc6 {[%clk 0:00:18]} 27. Nxg5 {[%clk 0:01:34]}  e5 {[%clk 0:00:18]} 28. Rd1 {[%clk 0:01:25]}  d4 {[%clk 0:00:18]} 29. Bf3 {[%clk 0:01:24]}  Bf5 {[%clk 0:00:16]} 30. Bxc6 {[%clk 0:01:24]}  bxc6 {[%clk 0:00:17]} 31. Nf3 {[%clk 0:01:24]}  Kf6 {[%clk 0:00:15]} 32. g4 {[%clk 0:01:22]}  Bc2 {[%clk 0:00:15]} 33. Re1 {[%clk 0:01:21]}  Bxb3 {[%clk 0:00:12]} 34. Rxe5 {[%clk 0:01:16]}  Rd8 {[%clk 0:00:11]} 35. Rf5+ {[%clk 0:01:15]}  Kg6 {[%clk 0:00:10]} 36. Ne5+ {[%clk 0:01:14]}  Kh7 {[%clk 0:00:05]} 37. Nxc6 {[%clk 0:01:13]}  Rd7 {[%clk 0:00:04]} 38. Ne5 {[%clk 0:01:12]}  Rc7 {[%clk 0:00:02]} 39. c6 {[%clk 0:01:11]}  Bc2 {[%clk 0:00:02]} 40. Rf7+ {[%clk 0:01:05]}  Rxf7 {[%clk 0:00:02]} 41. Nxf7 {[%clk 0:01:06]}  d3 {[%clk 0:00:02]} 42. Ng5+ {[%clk 0:01:06]}  Kg6 {[%clk 0:00:02]} 43. Nf3 {[%clk 0:01:06]}  Ba4 {[%clk 0:00:03]} 44. Kf1 {[%clk 0:01:04]}  Kf6 {[%clk 0:00:02]} 45. c7 {[%clk 0:01:04]}  Bd7 {[%clk 0:00:02]} 46. Ke1 {[%clk 0:01:03]}  Ke7 {[%clk 0:00:02]} 47. Kd2 {[%clk 0:01:03]}  Kd6 {[%clk 0:00:03]} 48. Kxd3 {[%clk 0:01:03]}  Kxc7 {[%clk 0:00:04]} 49. Ne5 {[%clk 0:01:02]}  Be6 {[%clk 0:00:04]} 50. f4 {[%clk 0:01:03]}  Bd5 {[%clk 0:00:04]} 51. h4 {[%clk 0:01:02]}  Kd6 {[%clk 0:00:05]} 52. Kd4 {[%clk 0:01:02]} 1-0


[Site "https://www.chess.com"]